[Event "Titled Tuesday Blitz June 21 Early 2022"]
[White "Devaev, Alexander"]
[Black "Gatterer, Florian"]
[WhiteFideId "4169395"]
[BlackFideId "811688"]
[WhiteElo "2185"]
[BlackElo "2218"]
[Result "1-0"]
[Round "05"]
[TimeControl "180+1"]
[Date "2022.06.22"]
[WhiteClock "0:00:07"]
[BlackClock "0:00:01"]

1. Nf3 {[%clk 0:02:57]}  g6 {[%clk 0:02:53]} 2. d4 {[%clk 0:02:55]}  Bg7 {[%clk 0:02:51]} 3. c4 {[%clk 0:02:56]}  Nf6 {[%clk 0:02:49]} 4. Nc3 {[%clk 0:02:56]}  d5 {[%clk 0:02:48]} 5. Bg5 {[%clk 0:02:55]}  Ne4 {[%clk 0:02:47]} 6. cxd5 {[%clk 0:02:56]}  Nxg5 {[%clk 0:02:45]} 7. Nxg5 {[%clk 0:02:57]}  e6 {[%clk 0:02:45]} 8. Nf3 {[%clk 0:02:57]}  exd5 {[%clk 0:02:45]} 9. b4 {[%clk 0:02:58]}  c6 {[%clk 0:02:37]} 10. Qb3 {[%clk 0:02:58]}  O-O {[%clk 0:02:28]} 11. e3 {[%clk 0:02:58]}  a6 {[%clk 0:02:25]} 12. Be2 {[%clk 0:02:58]}  Bg4 {[%clk 0:02:22]} 13. O-O {[%clk 0:02:58]}  Nd7 {[%clk 0:02:20]} 14. a4 {[%clk 0:02:58]}  Nf6 {[%clk 0:02:07]} 15. b5 {[%clk 0:02:50]}  axb5 {[%clk 0:02:07]} 16. axb5 {[%clk 0:02:50]}  Ne4 {[%clk 0:02:07]} 17. bxc6 {[%clk 0:02:45]}  bxc6 {[%clk 0:01:51]} 18. Qc2 {[%clk 0:01:35]}  Nxc3 {[%clk 0:01:29]} 19. Qxc3 {[%clk 0:01:33]}  Bxf3 {[%clk 0:01:29]} 20. Bxf3 {[%clk 0:01:30]}  Rxa1 {[%clk 0:01:28]} 21. Rxa1 {[%clk 0:01:30]}  Qd7 {[%clk 0:01:24]} 22. Qc5 {[%clk 0:00:59]}  Rc8 {[%clk 0:01:13]} 23. Ra7 {[%clk 0:00:58]}  Qe6 {[%clk 0:00:54]} 24. g3 {[%clk 0:00:29]}  Bf8 {[%clk 0:00:52]} 25. Qa5 {[%clk 0:00:26]}  c5 {[%clk 0:00:46]} 26. Ra6 {[%clk 0:00:24]}  Qf5 {[%clk 0:00:39]} 27. Kg2 {[%clk 0:00:25]}  cxd4 {[%clk 0:00:35]} 28. exd4 {[%clk 0:00:22]}  h5 {[%clk 0:00:30]} 29. Qxd5 {[%clk 0:00:08]}  Qxd5 {[%clk 0:00:30]} 30. Bxd5 {[%clk 0:00:09]}  Rd8 {[%clk 0:00:30]} 31. Rxg6+ {[%clk 0:00:09]}  Kh7 {[%clk 0:00:28]} 32. Rg5 {[%clk 0:00:10]}  f6 {[%clk 0:00:22]} 33. Rxh5+ {[%clk 0:00:08]}  Kg6 {[%clk 0:00:22]} 34. Bf3 {[%clk 0:00:09]}  Rxd4 {[%clk 0:00:21]} 35. Rb5 {[%clk 0:00:09]}  Rb4 {[%clk 0:00:19]} 36. Rd5 {[%clk 0:00:07]}  Rb2 {[%clk 0:00:19]} 37. h4 {[%clk 0:00:07]}  Bb4 {[%clk 0:00:18]} 38. Be4+ {[%clk 0:00:06]}  Kf7 {[%clk 0:00:17]} 39. Rf5 {[%clk 0:00:07]}  Be1 {[%clk 0:00:13]} 40. Rf3 {[%clk 0:00:07]}  Ke6 {[%clk 0:00:11]} 41. Bf5+ {[%clk 0:00:07]}  Kd6 {[%clk 0:00:10]} 42. Bh7 {[%clk 0:00:07]}  Bb4 {[%clk 0:00:09]} 43. Rxf6+ {[%clk 0:00:07]}  Ke5 {[%clk 0:00:09]} 44. Rf3 {[%clk 0:00:07]}  Bc5 {[%clk 0:00:09]} 45. Rf5+ {[%clk 0:00:07]}  Kd6 {[%clk 0:00:08]} 46. Bg8 {[%clk 0:00:07]}  Bb6 {[%clk 0:00:07]} 47. Rd5+ {[%clk 0:00:07]}  Ke7 {[%clk 0:00:07]} 48. Rf5 {[%clk 0:00:07]}  Bd4 {[%clk 0:00:07]} 49. Rf3 {[%clk 0:00:08]}  Rb8 {[%clk 0:00:05]} 50. Bd5 {[%clk 0:00:08]}  Rb2 {[%clk 0:00:04]} 51. Be4 {[%clk 0:00:08]}  Kd6 {[%clk 0:00:04]} 52. g4 {[%clk 0:00:08]}  Ke5 {[%clk 0:00:05]} 53. Bf5 {[%clk 0:00:09]}  Bc5 {[%clk 0:00:04]} 54. g5 {[%clk 0:00:09]}  Bd4 {[%clk 0:00:04]} 55. Bg4 {[%clk 0:00:09]}  Rb4 {[%clk 0:00:04]} 56. Rf5+ {[%clk 0:00:10]}  Ke4 {[%clk 0:00:04]} 57. Rf7 {[%clk 0:00:08]}  Be5 {[%clk 0:00:04]} 58. Bf5+ {[%clk 0:00:07]}  Kd4 {[%clk 0:00:03]} 59. Bg4 {[%clk 0:00:07]}  Ke4 {[%clk 0:00:03]} 60. Be2 {[%clk 0:00:07]}  Kd4 {[%clk 0:00:03]} 61. Bf3 {[%clk 0:00:08]}  Kc5 {[%clk 0:00:03]} 62. h5 {[%clk 0:00:08]}  Kd6 {[%clk 0:00:03]} 63. h6 {[%clk 0:00:08]}  Rb8 {[%clk 0:00:03]} 64. g6 {[%clk 0:00:08]}  Rh8 {[%clk 0:00:03]} 65. h7 {[%clk 0:00:08]}  Ke6 {[%clk 0:00:04]} 66. Rb7 {[%clk 0:00:08]}  Bf6 {[%clk 0:00:04]} 67. Bg4+ {[%clk 0:00:08]}  Ke5 {[%clk 0:00:04]} 68. Rb6 {[%clk 0:00:07]}  Bg7 {[%clk 0:00:02]} 69. f3 {[%clk 0:00:07]}  Kf4 {[%clk 0:00:02]} 70. Re6 {[%clk 0:00:08]}  Kg5 {[%clk 0:00:02]} 71. Kg3 {[%clk 0:00:07]}  Kh6 {[%clk 0:00:02]} 72. Kh4 {[%clk 0:00:07]}  Rd8 {[%clk 0:00:01]} 73. Ra6 {[%clk 0:00:07]}  Rd1 {[%clk 0:00:01]} 74. Kg3 {[%clk 0:00:08]}  Rh1 {[%clk 0:00:02]} 75. Kf4 {[%clk 0:00:08]}  Re1 {[%clk 0:00:02]} 76. Kf5 {[%clk 0:00:08]}  Be5 {[%clk 0:00:03]} 77. Ra4 {[%clk 0:00:07]}  Bg7 {[%clk 0:00:02]} 78. Re4 {[%clk 0:00:06]}  Rxe4 {[%clk 0:00:01]} 79. fxe4 {[%clk 0:00:07]} 1-0


[Site "https://www.chess.com"]

[Event "Titled Tuesday Blitz June 21 Early 2022"]
[White "Deviprasath, Sharvesh"]
[Black "Aslanov, Umid"]
[WhiteFideId "30938228"]
[BlackFideId "13412620"]
[WhiteElo "2102"]
[BlackElo "1796"]
[Result "1-0"]
[Round "05"]
[TimeControl "180+1"]
[Date "2022.06.22"]
[WhiteClock "0:00:12"]
[BlackClock "0:00:08"]

1. Nf3 {[%clk 0:02:10]}  d5 {[%clk 0:02:59]} 2. c4 {[%clk 0:02:10]}  e6 {[%clk 0:02:59]} 3. e3 {[%clk 0:02:09]}  Nf6 {[%clk 0:02:58]} 4. Nc3 {[%clk 0:02:05]}  Be7 {[%clk 0:02:54]} 5. b3 {[%clk 0:02:05]}  dxc4 {[%clk 0:02:54]} 6. Bxc4 {[%clk 0:02:06]}  c5 {[%clk 0:02:54]} 7. Bb2 {[%clk 0:02:04]}  O-O {[%clk 0:02:55]} 8. O-O {[%clk 0:02:05]}  Nc6 {[%clk 0:02:55]} 9. d4 {[%clk 0:02:06]}  cxd4 {[%clk 0:02:54]} 10. exd4 {[%clk 0:02:06]}  b6 {[%clk 0:02:44]} 11. Re1 {[%clk 0:02:04]}  Na5 {[%clk 0:02:39]} 12. Bd3 {[%clk 0:02:04]}  h6 {[%clk 0:02:33]} 13. Rc1 {[%clk 0:01:58]}  Bb7 {[%clk 0:02:32]} 14. Bb1 {[%clk 0:01:46]}  Rc8 {[%clk 0:02:26]} 15. Qd2 {[%clk 0:01:40]}  Bxf3 {[%clk 0:02:21]} 16. gxf3 {[%clk 0:01:40]}  Bb4 {[%clk 0:02:15]} 17. Qd3 {[%clk 0:01:25]}  Nc6 {[%clk 0:02:05]} 18. Rcd1 {[%clk 0:01:17]}  Ne7 {[%clk 0:02:00]} 19. Kh1 {[%clk 0:01:14]}  Bxc3 {[%clk 0:01:59]} 20. Bxc3 {[%clk 0:01:11]}  Ned5 {[%clk 0:02:00]} 21. Bd2 {[%clk 0:01:11]}  Qd6 {[%clk 0:01:49]} 22. Rg1 {[%clk 0:01:08]}  Nf4 {[%clk 0:01:47]} 23. Bxf4 {[%clk 0:01:00]}  Qxf4 {[%clk 0:01:48]} 24. Rg4 {[%clk 0:01:01]}  Qf5 {[%clk 0:01:40]} 25. Qxf5 {[%clk 0:00:53]}  exf5 {[%clk 0:01:41]} 26. Rg3 {[%clk 0:00:52]}  Nh5 {[%clk 0:01:28]} 27. Rgg1 {[%clk 0:00:45]}  Nf4 {[%clk 0:01:12]} 28. Bxf5 {[%clk 0:00:43]}  Rcd8 {[%clk 0:01:11]} 29. Be4 {[%clk 0:00:39]}  f5 {[%clk 0:01:11]} 30. Bd3 {[%clk 0:00:36]}  Kh7 {[%clk 0:01:04]} 31. Bc4 {[%clk 0:00:34]}  Rd6 {[%clk 0:01:00]} 32. Rge1 {[%clk 0:00:32]}  Rfd8 {[%clk 0:00:57]} 33. Re7 {[%clk 0:00:30]}  Rxd4 {[%clk 0:00:50]} 34. Rg1 {[%clk 0:00:24]}  Ng6 {[%clk 0:00:49]} 35. Rxa7 {[%clk 0:00:20]}  Rd1 {[%clk 0:00:35]} 36. h3 {[%clk 0:00:08]}  Rxg1+ {[%clk 0:00:34]} 37. Kxg1 {[%clk 0:00:09]}  Nf4 {[%clk 0:00:32]} 38. a4 {[%clk 0:00:07]}  Nxh3+ {[%clk 0:00:27]} 39. Kh2 {[%clk 0:00:07]}  Nxf2 {[%clk 0:00:22]} 40. Rb7 {[%clk 0:00:08]}  f4 {[%clk 0:00:20]} 41. Rxb6 {[%clk 0:00:07]}  Rd2 {[%clk 0:00:20]} 42. Kg1 {[%clk 0:00:06]}  Nh3+ {[%clk 0:00:20]} 43. Kf1 {[%clk 0:00:05]}  Rf2+ {[%clk 0:00:21]} 44. Ke1 {[%clk 0:00:04]}  Rxf3 {[%clk 0:00:21]} 45. a5 {[%clk 0:00:03]}  Re3+ {[%clk 0:00:21]} 46. Kd2 {[%clk 0:00:03]}  Re7 {[%clk 0:00:21]} 47. a6 {[%clk 0:00:04]}  f3 {[%clk 0:00:20]} 48. Rb7 {[%clk 0:00:04]}  Re5 {[%clk 0:00:13]} 49. b4 {[%clk 0:00:02]}  f2 {[%clk 0:00:12]} 50. a7 {[%clk 0:00:02]}  Rd5+ {[%clk 0:00:06]} 51. Kc2 {[%clk 0:00:01]}  Rd4 {[%clk 0:00:06]} 52. Bf1 {[%clk 0:00:01]}  Rd8 {[%clk 0:00:03]} 53. Rb8 {[%clk 0:00:01]}  Rd2+ {[%clk 0:00:03]} 54. Kxd2 {[%clk 0:00:01]}  Nf4 {[%clk 0:00:03]} 55. a8=Q {[%clk 0:00:01]}  Kg6 {[%clk 0:00:04]} 56. Ke3 {[%clk 0:00:02]}  Nd5+ {[%clk 0:00:04]} 57. Kxf2 {[%clk 0:00:03]}  Nc7 {[%clk 0:00:04]} 58. Qb7 {[%clk 0:00:04]}  Ne6 {[%clk 0:00:03]} 59. Bd3+ {[%clk 0:00:05]}  Kf6 {[%clk 0:00:03]} 60. Qc6 {[%clk 0:00:06]}  Ke5 {[%clk 0:00:04]} 61. Rb5+ {[%clk 0:00:06]}  Kd4 {[%clk 0:00:04]} 62. Qxe6 {[%clk 0:00:07]}  Kxd3 {[%clk 0:00:04]} 63. Rd5+ {[%clk 0:00:07]}  Kc4 {[%clk 0:00:05]} 64. b5 {[%clk 0:00:08]}  Kb4 {[%clk 0:00:06]} 65. Qc6 {[%clk 0:00:09]}  Ka4 {[%clk 0:00:06]} 66. b6+ {[%clk 0:00:09]}  Ka3 {[%clk 0:00:07]} 67. b7 {[%clk 0:00:10]}  g5 {[%clk 0:00:07]} 68. b8=Q {[%clk 0:00:11]}  g4 {[%clk 0:00:08]} 69. Ra5# {[%clk 0:00:12]} 1-0


[Site "https://www.chess.com"]

[Event "Titled Tuesday Blitz June 21 Early 2022"]
[White "Dubov, Daniil"]
[Black "Paravyan, David"]
[WhiteFideId "24126055"]
[BlackFideId "4194985"]
[WhiteElo "2791"]
[BlackElo "2569"]
[Result "1-0"]
[Round "05"]
[TimeControl "180+1"]
[Date "2022.06.21"]
[WhiteClock "0:00:02"]
[BlackClock "0:00:01"]

1. e4 {[%clk 0:03:00]}  c6 {[%clk 0:02:58]} 2. d4 {[%clk 0:03:00]}  d5 {[%clk 0:02:59]} 3. exd5 {[%clk 0:03:00]}  cxd5 {[%clk 0:03:00]} 4. Bd3 {[%clk 0:03:01]}  Nf6 {[%clk 0:02:59]} 5. c3 {[%clk 0:03:00]}  Nc6 {[%clk 0:03:00]} 6. Bf4 {[%clk 0:02:58]}  Bg4 {[%clk 0:02:56]} 7. Qb3 {[%clk 0:02:56]}  Qd7 {[%clk 0:02:45]} 8. Nd2 {[%clk 0:02:53]}  e6 {[%clk 0:02:41]} 9. Ngf3 {[%clk 0:02:53]}  Bxf3 {[%clk 0:02:41]} 10. Nxf3 {[%clk 0:02:52]}  Bd6 {[%clk 0:02:41]} 11. Bxd6 {[%clk 0:02:35]}  Qxd6 {[%clk 0:02:42]} 12. O-O {[%clk 0:02:36]}  O-O {[%clk 0:02:42]} 13. Rae1 {[%clk 0:02:33]}  Nd7 {[%clk 0:02:37]} 14. Re3 {[%clk 0:02:29]}  Rab8 {[%clk 0:02:36]} 15. Rfe1 {[%clk 0:02:21]}  b5 {[%clk 0:02:24]} 16. a3 {[%clk 0:02:09]}  g6 {[%clk 0:02:16]} 17. h4 {[%clk 0:02:04]}  Na5 {[%clk 0:02:13]} 18. Qd1 {[%clk 0:02:02]}  Nc4 {[%clk 0:02:13]} 19. R3e2 {[%clk 0:02:01]}  Qf4 {[%clk 0:02:07]} 20. b3 {[%clk 0:01:43]}  Nd6 {[%clk 0:02:04]} 21. Re3 {[%clk 0:01:41]}  a5 {[%clk 0:01:58]} 22. g3 {[%clk 0:01:37]}  Qh6 {[%clk 0:01:42]} 23. Ng5 {[%clk 0:01:18]}  b4 {[%clk 0:01:32]} 24. cxb4 {[%clk 0:01:16]}  axb4 {[%clk 0:01:32]} 25. a4 {[%clk 0:01:17]}  Qg7 {[%clk 0:01:32]} 26. Nf3 {[%clk 0:01:10]}  Rfc8 {[%clk 0:01:31]} 27. a5 {[%clk 0:01:08]}  Rc3 {[%clk 0:01:29]} 28. Bf1 {[%clk 0:01:05]}  Ne4 {[%clk 0:01:21]} 29. a6 {[%clk 0:00:56]}  Qf6 {[%clk 0:01:15]} 30. Qa1 {[%clk 0:00:47]}  Qd8 {[%clk 0:01:06]} 31. Ng5 {[%clk 0:00:42]}  Ndf6 {[%clk 0:00:46]} 32. Qa4 {[%clk 0:00:37]}  Qb6 {[%clk 0:00:44]} 33. Nxe4 {[%clk 0:00:34]}  Nxe4 {[%clk 0:00:42]} 34. Qd7 {[%clk 0:00:21]}  Rc7 {[%clk 0:00:40]} 35. Qa4 {[%clk 0:00:19]}  Nc3 {[%clk 0:00:39]} 36. Qa1 {[%clk 0:00:18]}  Nb5 {[%clk 0:00:37]} 37. Rd1 {[%clk 0:00:10]}  Ra7 {[%clk 0:00:37]} 38. Qc1 {[%clk 0:00:09]}  Rxa6 {[%clk 0:00:28]} 39. Bxb5 {[%clk 0:00:10]}  Qxb5 {[%clk 0:00:27]} 40. Rf3 {[%clk 0:00:10]}  Qd7 {[%clk 0:00:12]} 41. h5 {[%clk 0:00:08]}  Rc8 {[%clk 0:00:09]} 42. Qg5 {[%clk 0:00:08]}  Qd8 {[%clk 0:00:09]} 43. Rf6 {[%clk 0:00:08]}  Rac6 {[%clk 0:00:05]} 44. Rd3 {[%clk 0:00:07]}  Rc3 {[%clk 0:00:05]} 45. Rd2 {[%clk 0:00:05]}  h6 {[%clk 0:00:05]} 46. Qf4 {[%clk 0:00:03]}  g5 {[%clk 0:00:03]} 47. Qe5 {[%clk 0:00:04]}  Qc7 {[%clk 0:00:04]} 48. Rxh6 {[%clk 0:00:01]}  Qxe5 {[%clk 0:00:04]} 49. dxe5 {[%clk 0:00:02]}  Rf3 {[%clk 0:00:05]} 50. Rf6 {[%clk 0:00:02]}  Rxf6 {[%clk 0:00:05]} 51. exf6 {[%clk 0:00:03]}  Rc3 {[%clk 0:00:05]} 52. Rd4 {[%clk 0:00:04]}  Rxb3 {[%clk 0:00:03]} 53. Rg4 {[%clk 0:00:04]}  Rf3 {[%clk 0:00:04]} 54. Rxg5+ {[%clk 0:00:04]}  Kh8 {[%clk 0:00:04]} 55. Rg4 {[%clk 0:00:03]}  b3 {[%clk 0:00:04]} 56. Rb4 {[%clk 0:00:03]}  Rxf6 {[%clk 0:00:05]} 57. Rxb3 {[%clk 0:00:04]}  Kh7 {[%clk 0:00:05]} 58. Kg2 {[%clk 0:00:03]}  Kh6 {[%clk 0:00:05]} 59. g4 {[%clk 0:00:03]}  Rf4 {[%clk 0:00:04]} 60. Kg3 {[%clk 0:00:03]}  Rc4 {[%clk 0:00:03]} 61. f3 {[%clk 0:00:03]}  d4 {[%clk 0:00:02]} 62. Rb7 {[%clk 0:00:04]}  Kg7 {[%clk 0:00:02]} 63. Rd7 {[%clk 0:00:04]}  e5 {[%clk 0:00:02]} 64. g5 {[%clk 0:00:04]}  Rc6 {[%clk 0:00:01]} 65. g6 {[%clk 0:00:04]}  Rf6 {[%clk 0:00:01]} 66. Kg4 {[%clk 0:00:04]}  Rf4+ {[%clk 0:00:02]} 67. Kg5 {[%clk 0:00:04]}  Kf8 {[%clk 0:00:01]} 68. Rd8+ {[%clk 0:00:03]}  Kg7 {[%clk 0:00:01]} 69. h6# {[%clk 0:00:02]} 1-0


[Site "https://www.chess.com"]

[Event "Titled Tuesday Blitz June 21 Early 2022"]
[White "Espinosa Veloz, Ermes"]
[Black "Samsonkin, Artiom"]
[WhiteFideId "3507424"]
[BlackFideId "13503111"]
[WhiteElo "2333"]
[BlackElo "2513"]
[Result "0-1"]
[Round "05"]
[TimeControl "180+1"]
[Date "2022.06.22"]
[WhiteClock "0:01:36"]
[BlackClock "0:00:15"]

1. e4 {[%clk 0:03:00]}  e6 {[%clk 0:02:55]} 2. d4 {[%clk 0:03:00]}  d5 {[%clk 0:02:55]} 3. Nc3 {[%clk 0:03:00]}  Nf6 {[%clk 0:02:55]} 4. e5 {[%clk 0:03:01]}  Nfd7 {[%clk 0:02:56]} 5. f4 {[%clk 0:03:01]}  c5 {[%clk 0:02:57]} 6. Nf3 {[%clk 0:03:02]}  Nc6 {[%clk 0:02:58]} 7. Be3 {[%clk 0:03:01]}  cxd4 {[%clk 0:02:58]} 8. Nxd4 {[%clk 0:03:02]}  Qb6 {[%clk 0:02:59]} 9. Qd2 {[%clk 0:02:58]}  Qxb2 {[%clk 0:02:59]} 10. Rb1 {[%clk 0:02:59]}  Qa3 {[%clk 0:03:00]} 11. Bb5 {[%clk 0:02:58]}  Nxd4 {[%clk 0:02:59]} 12. Bxd4 {[%clk 0:02:55]}  a6 {[%clk 0:03:00]} 13. Bxd7+ {[%clk 0:02:55]}  Bxd7 {[%clk 0:03:01]} 14. Rb3 {[%clk 0:02:56]}  Qe7 {[%clk 0:03:00]} 15. Rb5 {[%clk 0:02:54]}  axb5 {[%clk 0:02:53]} 16. O-O {[%clk 0:02:43]}  b4 {[%clk 0:02:51]} 17. Nd1 {[%clk 0:02:42]}  Bb5 {[%clk 0:02:51]} 18. Rf3 {[%clk 0:02:41]}  Qc7 {[%clk 0:02:51]} 19. Ne3 {[%clk 0:02:40]}  Bc5 {[%clk 0:02:51]} 20. f5 {[%clk 0:02:40]}  Bxd4 {[%clk 0:02:39]} 21. Qxd4 {[%clk 0:02:41]}  Qc3 {[%clk 0:02:39]} 22. Qh4 {[%clk 0:02:36]}  Rxa2 {[%clk 0:01:57]} 23. h3 {[%clk 0:02:02]}  Ra1+ {[%clk 0:01:54]} 24. Kh2 {[%clk 0:02:02]}  Qxe5+ {[%clk 0:01:55]} 25. Rg3 {[%clk 0:02:00]}  exf5 {[%clk 0:01:47]} 26. Qxb4 {[%clk 0:01:57]}  Bc6 {[%clk 0:01:27]} 27. Nxf5 {[%clk 0:01:39]}  Qxf5 {[%clk 0:01:19]} 28. Re3+ {[%clk 0:01:38]}  Qe6 {[%clk 0:00:18]} 29. Re5 {[%clk 0:01:36]}  Qxe5+ {[%clk 0:00:15]} 0-1


[Site "https://www.chess.com"]

[Event "Titled Tuesday Blitz June 21 Early 2022"]
[White "Goltsev, Dmitry"]
[Black "Agibileg, Uurtsaikh"]
[WhiteFideId "24176710"]
[BlackFideId "4901606"]
[WhiteElo "2258"]
[BlackElo "2205"]
[Result "0-1"]
[Round "05"]
[TimeControl "180+1"]
[Date "2022.06.21"]
[WhiteClock "0:00:05"]
[BlackClock "0:00:09"]

1. e4 {[%clk 0:02:54]}  c5 {[%clk 0:02:59]} 2. Nf3 {[%clk 0:02:54]}  e6 {[%clk 0:02:58]} 3. d4 {[%clk 0:02:55]}  cxd4 {[%clk 0:02:59]} 4. Nxd4 {[%clk 0:02:56]}  Nc6 {[%clk 0:03:00]} 5. Nc3 {[%clk 0:02:56]}  Qc7 {[%clk 0:02:59]} 6. Be2 {[%clk 0:02:56]}  a6 {[%clk 0:02:59]} 7. O-O {[%clk 0:02:57]}  Nf6 {[%clk 0:02:59]} 8. Be3 {[%clk 0:02:56]}  Be7 {[%clk 0:03:00]} 9. f4 {[%clk 0:02:57]}  d6 {[%clk 0:03:00]} 10. Bf3 {[%clk 0:02:56]}  O-O {[%clk 0:03:00]} 11. g4 {[%clk 0:02:56]}  Nxd4 {[%clk 0:02:58]} 12. Bxd4 {[%clk 0:02:55]}  e5 {[%clk 0:02:57]} 13. Be3 {[%clk 0:02:54]}  exf4 {[%clk 0:02:57]} 14. Bxf4 {[%clk 0:02:55]}  Be6 {[%clk 0:02:57]} 15. Qd2 {[%clk 0:02:46]}  Nd7 {[%clk 0:02:55]} 16. Nd5 {[%clk 0:02:42]}  Bxd5 {[%clk 0:02:55]} 17. exd5 {[%clk 0:02:41]}  Bf6 {[%clk 0:02:54]} 18. c3 {[%clk 0:02:39]}  Be5 {[%clk 0:02:49]} 19. Be3 {[%clk 0:02:36]}  Rae8 {[%clk 0:02:31]} 20. Rae1 {[%clk 0:02:33]}  Nc5 {[%clk 0:02:22]} 21. Bd4 {[%clk 0:02:24]}  Bxd4+ {[%clk 0:02:19]} 22. Qxd4 {[%clk 0:02:25]}  Nd7 {[%clk 0:02:19]} 23. h3 {[%clk 0:02:22]}  Ne5 {[%clk 0:02:13]} 24. Bg2 {[%clk 0:02:15]}  Re7 {[%clk 0:02:09]} 25. Re2 {[%clk 0:02:06]}  Rfe8 {[%clk 0:02:08]} 26. Ref2 {[%clk 0:02:06]}  Qc4 {[%clk 0:02:04]} 27. Rf4 {[%clk 0:01:57]}  Qxa2 {[%clk 0:01:55]} 28. c4 {[%clk 0:01:32]}  Ng6 {[%clk 0:01:43]} 29. R4f2 {[%clk 0:01:22]}  Qa4 {[%clk 0:01:42]} 30. Qc3 {[%clk 0:01:19]}  b6 {[%clk 0:01:39]} 31. b4 {[%clk 0:01:16]}  Rc8 {[%clk 0:01:28]} 32. g5 {[%clk 0:01:02]}  Ne5 {[%clk 0:01:23]} 33. Rf4 {[%clk 0:00:54]}  Qd7 {[%clk 0:00:35]} 34. h4 {[%clk 0:00:50]}  Qd8 {[%clk 0:00:33]} 35. Kh1 {[%clk 0:00:48]}  Rec7 {[%clk 0:00:33]} 36. c5 {[%clk 0:00:37]}  bxc5 {[%clk 0:00:33]} 37. bxc5 {[%clk 0:00:38]}  Rxc5 {[%clk 0:00:34]} 38. Qa3 {[%clk 0:00:37]}  a5 {[%clk 0:00:33]} 39. Qe3 {[%clk 0:00:34]}  Rc4 {[%clk 0:00:33]} 40. h5 {[%clk 0:00:30]}  Qxg5 {[%clk 0:00:30]} 41. Rxc4 {[%clk 0:00:29]}  Qxh5+ {[%clk 0:00:30]} 42. Kg1 {[%clk 0:00:27]}  Rxc4 {[%clk 0:00:29]} 43. Qb6 {[%clk 0:00:26]}  h6 {[%clk 0:00:22]} 44. Qxd6 {[%clk 0:00:23]}  Rg4 {[%clk 0:00:21]} 45. Qc5 {[%clk 0:00:18]}  Qg6 {[%clk 0:00:19]} 46. Rf2 {[%clk 0:00:15]}  Nd3 {[%clk 0:00:16]} 47. Qc8+ {[%clk 0:00:11]}  Kh7 {[%clk 0:00:17]} 48. Rd2 {[%clk 0:00:12]}  Nf4 {[%clk 0:00:17]} 49. Qc2 {[%clk 0:00:07]}  Qxc2 {[%clk 0:00:14]} 50. Rxc2 {[%clk 0:00:08]}  Nxg2 {[%clk 0:00:13]} 51. d6 {[%clk 0:00:03]}  Nf4+ {[%clk 0:00:13]} 52. Kf1 {[%clk 0:00:03]}  Ne6 {[%clk 0:00:13]} 53. Rd2 {[%clk 0:00:02]}  Rd4 {[%clk 0:00:14]} 54. Ra2 {[%clk 0:00:01]}  Rxd6 {[%clk 0:00:14]} 55. Rxa5 {[%clk 0:00:02]}  Kg6 {[%clk 0:00:14]} 56. Kg2 {[%clk 0:00:03]}  h5 {[%clk 0:00:14]} 57. Kh3 {[%clk 0:00:04]}  Kh6 {[%clk 0:00:14]} 58. Kh4 {[%clk 0:00:04]}  g5+ {[%clk 0:00:15]} 59. Kh3 {[%clk 0:00:04]}  Rd3+ {[%clk 0:00:15]} 60. Kg2 {[%clk 0:00:05]}  h4 {[%clk 0:00:15]} 61. Kf2 {[%clk 0:00:06]}  Kh5 {[%clk 0:00:15]} 62. Ra8 {[%clk 0:00:06]}  Kg4 {[%clk 0:00:14]} 63. Ra4+ {[%clk 0:00:06]}  Nf4 {[%clk 0:00:14]} 64. Kg1 {[%clk 0:00:06]}  h3 {[%clk 0:00:14]} 65. Ra2 {[%clk 0:00:06]}  Kh4 {[%clk 0:00:13]} 66. Rf2 {[%clk 0:00:02]}  Rd1+ {[%clk 0:00:11]} 67. Kh2 {[%clk 0:00:03]}  Rd4 {[%clk 0:00:11]} 68. Rf1 {[%clk 0:00:02]}  g4 {[%clk 0:00:12]} 69. Kh1 {[%clk 0:00:02]}  g3 {[%clk 0:00:12]} 70. Re1 {[%clk 0:00:03]}  f5 {[%clk 0:00:08]} 71. Rc1 {[%clk 0:00:03]}  Kg4 {[%clk 0:00:08]} 72. Rf1 {[%clk 0:00:03]}  Re4 {[%clk 0:00:08]} 73. Rd1 {[%clk 0:00:03]}  Nd3 {[%clk 0:00:08]} 74. Kg1 {[%clk 0:00:02]}  Re1+ {[%clk 0:00:08]} 75. Rxe1 {[%clk 0:00:02]}  Nxe1 {[%clk 0:00:09]} 76. Kh1 {[%clk 0:00:03]}  f4 {[%clk 0:00:08]} 77. Kg1 {[%clk 0:00:03]}  f3 {[%clk 0:00:08]} 78. Kh1 {[%clk 0:00:04]}  Nd3 {[%clk 0:00:08]} 79. Kg1 {[%clk 0:00:04]}  h2+ {[%clk 0:00:08]} 80. Kf1 {[%clk 0:00:05]}  g2# {[%clk 0:00:09]} 0-1


[Site "https://www.chess.com"]

[Event "Titled Tuesday Blitz June 21 Early 2022"]
[White "Gracia Alvarez, Gerardo Antonio"]
[Black "Matinian, Nikita"]
[WhiteFideId "5109124"]
[BlackFideId "24129100"]
[WhiteElo "2139"]
[BlackElo "2422"]
[Result "0-1"]
[Round "05"]
[TimeControl "180+1"]
[Date "2022.06.21"]
[WhiteClock "0:00:06"]
[BlackClock "0:01:22"]

1. e4 {[%clk 0:03:00]}  c5 {[%clk 0:02:58]} 2. Nc3 {[%clk 0:03:01]}  Nc6 {[%clk 0:02:58]} 3. Bb5 {[%clk 0:03:00]}  Nd4 {[%clk 0:02:58]} 4. Nf3 {[%clk 0:03:01]}  a6 {[%clk 0:02:55]} 5. Bd3 {[%clk 0:02:56]}  g6 {[%clk 0:02:52]} 6. Rb1 {[%clk 0:02:51]}  Nc6 {[%clk 0:02:50]} 7. a3 {[%clk 0:02:49]}  b5 {[%clk 0:02:46]} 8. b4 {[%clk 0:02:42]}  c4 {[%clk 0:02:46]} 9. Be2 {[%clk 0:02:39]}  Bg7 {[%clk 0:02:47]} 10. Bb2 {[%clk 0:02:38]}  Nf6 {[%clk 0:02:40]} 11. Nd5 {[%clk 0:02:36]}  O-O {[%clk 0:02:40]} 12. Nxf6+ {[%clk 0:02:35]}  exf6 {[%clk 0:02:40]} 13. O-O {[%clk 0:02:33]}  d5 {[%clk 0:02:40]} 14. d3 {[%clk 0:02:27]}  dxe4 {[%clk 0:02:34]} 15. dxe4 {[%clk 0:02:26]}  Qe7 {[%clk 0:02:33]} 16. Nd4 {[%clk 0:02:11]}  Bb7 {[%clk 0:02:28]} 17. Nxc6 {[%clk 0:01:53]}  Bxc6 {[%clk 0:02:28]} 18. Bf3 {[%clk 0:01:54]}  Rad8 {[%clk 0:02:13]} 19. Qe2 {[%clk 0:01:52]}  Rfe8 {[%clk 0:02:13]} 20. Rfe1 {[%clk 0:01:52]}  f5 {[%clk 0:02:05]} 21. Bxg7 {[%clk 0:01:41]}  Kxg7 {[%clk 0:02:06]} 22. e5 {[%clk 0:01:17]}  Bxf3 {[%clk 0:01:56]} 23. Qxf3 {[%clk 0:01:18]}  Rd4 {[%clk 0:01:56]} 24. Qc6 {[%clk 0:01:14]}  Qe6 {[%clk 0:01:55]} 25. Qc7 {[%clk 0:00:47]}  Rd2 {[%clk 0:01:44]} 26. c3 {[%clk 0:00:43]}  Red8 {[%clk 0:01:42]} 27. h3 {[%clk 0:00:29]}  R8d3 {[%clk 0:01:42]} 28. a4 {[%clk 0:00:24]}  Rxc3 {[%clk 0:01:40]} 29. axb5 {[%clk 0:00:24]}  axb5 {[%clk 0:01:41]} 30. Qb7 {[%clk 0:00:24]}  Rcc2 {[%clk 0:01:40]} 31. Rf1 {[%clk 0:00:15]}  Qxe5 {[%clk 0:01:40]} 32. Rbe1 {[%clk 0:00:14]}  Qd5 {[%clk 0:01:37]} 33. Qc7 {[%clk 0:00:13]}  c3 {[%clk 0:01:33]} 34. Re5 {[%clk 0:00:12]}  Qd6 {[%clk 0:01:30]} 35. Qxd6 {[%clk 0:00:09]}  Rxd6 {[%clk 0:01:29]} 36. Rxb5 {[%clk 0:00:10]}  Rc6 {[%clk 0:01:22]} 37. Rc5 {[%clk 0:00:06]}  Rxc5 {[%clk 0:01:23]} 38. bxc5 {[%clk 0:00:06]}  Kf6 {[%clk 0:01:23]} 39. Rd1 {[%clk 0:00:06]}  Rd2 {[%clk 0:01:23]} 40. Rc1 {[%clk 0:00:05]}  c2 {[%clk 0:01:23]} 41. Kh2 {[%clk 0:00:06]}  Ke6 {[%clk 0:01:21]} 42. Kg3 {[%clk 0:00:06]}  Kd5 {[%clk 0:01:22]} 0-1


[Site "https://www.chess.com"]